bitfinex/quotes_ETHUSD_20220202
["timestamp","ask_amount","ask_price","bid_price","bid_amount"]
[1643794836589,0.3,2768.9,2768.7,0.17954992]
[1643794836790,0.3,2768.9,2768.7,1.17954992]
[1643794836992,2.0170068,2769.6,2768.7,1.17954992]
[1643794837189,0.1804,2769.5,2768.7,1.17954992]
[1643794837390,0.1804,2769.5,2768.7,0.17954992]
[1643794837695,0.67440998,2769.4,2768.7,0.17954992]
[1643794837889,1.89028037,2769.3,2768.5,1.1804]
[1643794838292,1.89028037,2769.3,2768.5,0.1804]
[1643794839371,0.9029039,2769.2,2768.5,0.1804]
[1643794839567,2.37260049,2769.1,2768.5,0.1804]
[1643794840167,2.37260049,2769.1,2768.2,0.25]
[1643794840168,2.37260049,2769.1,2768.3,0.1804]
[1643794840367,2.55300049,2769.1,2768.3,0.1804]
[1643794840569,0.9030007,2768.9,2768.3,0.1804]
[1643794840769,0.40621107,2768.4,2768.1,3.2629]
[1643794840971,0.40621107,2768.4,2768.1,0.1804]
[1643794841172,0.3,2768.3,2768.1,0.1804]
[1643794841375,0.3,2768.3,2768.1,0.51680434]
[1643794841569,0.70621107,2768.4,2768.1,0.1804]
[1643794841770,0.3,2768.4,2768.1,0.1804]
[1643794842205,2.26680689,2769.1,2768.1,0.1804]
[1643794842609,2.56680689,2769.1,2768.1,0.1804]
[1643794843008,0.78021247,2769.0,2768.1,0.1804]
[1643794843211,2.51432568,2768.9,2768.1,0.1804]
[1643794843410,0.405777,2768.3,2768.1,0.1804]
[1643794843610,0.705777,2768.3,2768.1,0.1804]
[1643794844313,2.21432568,2768.9,2768.1,0.1804]
[1643794844511,3.2309019,2769.2,2768.1,0.1804]
[1643794844512,2.35891273,2769.1,2768.1,0.1804]
[1643794844715,2.65891273,2769.1,2768.1,0.1804]
[1643794845117,0.34445895,2768.3,2768.1,0.1804]
[1643794845715,0.64445895,2768.3,2768.1,0.1804]
[1643794845941,1.84380776,2768.2,2768.1,0.1804]
[1643794846146,1.84380776,2768.2,2768.0,17.47]
[1643794846549,1.84380776,2768.2,2767.6,0.51700434]
[1643794846747,1.84380776,2768.2,2767.6,0.1806]
[1643794846748,0.61772639,2767.8,2767.6,0.1806]
[1643794846945,0.3,2767.8,2767.6,0.1806]
[1643794847148,1.84380776,2768.2,2767.6,1.13338441]
[1643794847547,1.84380776,2768.2,2767.4,1.0]
[1643794847548,0.9032758,2768.1,2767.5,0.1806]
[1643794847749,2.19022556,2768.0,2767.5,0.1806]
[1643794847947,2.19022556,2768.0,2767.3,1.3]
[1643794847948,0.3,2768.0,2767.7,0.37785425]
[1643794848147,0.63004473,2768.3,2767.7,0.37785425]
[1643794848347,0.63004473,2768.3,2767.4,0.1806]
[1643794848548,0.63004473,2768.3,2767.9,0.76789079]
[1643794849349,1.81676796,2768.2,2767.9,0.76789079]
[1643794849549,1.8619744,2768.2,2767.9,0.76789079]
[1643794849784,0.63004473,2768.3,2767.6,0.39370254]
[1643794849985,0.63004473,2768.3,2767.7,0.1806]
[1643794851190,4.57745239,2768.2,2767.4,0.1806]
[1643794851391,3.04995856,2768.2,2767.4,0.1806]
[1643794851987,3.04995856,2768.2,2768.0,10.0]
[1643794852188,2.09878181,2768.1,2768.0,10.0]
[1643794852392,2.39878181,2768.1,2768.0,10.0]
[1643794852794,0.4806,2768.1,2768.0,10.0]
[1643794853633,0.3,2768.1,2768.0,10.0]
[1643794853833,1.3837924,2768.2,2768.0,10.0]
[1643794854237,1.82580174,2768.1,2768.0,10.0]
[1643794854834,1.3837924,2768.2,2768.0,10.0]
[1643794857688,0.4806,2768.2,2768.0,10.0]
[1643794858289,0.3,2768.2,2768.0,10.0]
[1643794858697,7.223,2768.1,2768.0,10.0]
[1643794858890,5.4036,2768.1,2768.0,10.0]
[1643794859088,6.0176,2768.1,2768.0,10.0]
[1643794859495,2.84526759,2768.1,2768.0,8.37048791]
[1643794859690,3.77165658,2768.1,2768.0,8.37048791]
[1643794860290,3.77165211,2768.1,2768.0,8.37048791]
[1643794860935,5.78795859,2768.1,2768.0,8.37048791]
[1643794862541,4.26029547,2768.1,2768.0,8.37048791]
[1643794863347,5.78794205,2768.1,2768.0,8.37048791]
[1643794863543,5.78794205,2768.1,2767.2,0.1806]
[1643794863544,6.75,2768.0,2767.2,0.1806]
[1643794863745,6.75,2768.0,2767.0,0.1806]
[1643794863746,0.314,2767.6,2767.0,0.1806]
[1643794864043,0.314,2767.4,2767.0,0.1806]
[1643794864244,0.314,2767.2,2767.0,0.1806]
[1643794864447,2.31824725,2767.3,2767.0,0.1806]
[1643794864448,2.16414836,2767.1,2767.0,0.1806]
[1643794864692,2.16414836,2767.1,2766.7,0.1806]
[1643794864891,0.314,2767.0,2766.6,0.1807]
[1643794865095,0.314,2767.0,2766.5,0.1807]
[1643794865289,0.314,2766.9,2766.5,0.1807]
[1643794865889,0.314,2766.7,2766.5,0.1807]
[1643794866090,0.314,2766.7,2766.4,0.1807]
[1643794866292,0.314,2766.4,2766.3,0.1807]
[1643794869445,0.314,2766.4,2766.2,0.1807]
[1643794871350,0.314,2766.6,2766.2,0.1807]
[1643794871671,0.614,2766.6,2766.2,0.1807]
[1643794872311,0.614,2766.6,2766.1,0.1807]
[1643794872312,0.314,2766.4,2766.1,0.1807]
[1643794872514,0.314,2766.4,2766.0,1.4807]
[1643794872710,0.314,2766.3,2766.0,1.4807]
[1643794873308,0.314,2766.3,2766.0,0.3]
[1643794873613,0.314,2766.3,2766.1,0.67441865]
[1643794874612,0.314,2766.3,2766.1,1.02712451]
[1643794875114,0.314,2766.3,2766.1,0.67441865]
[1643794875511,0.23841017,2766.3,2766.1,0.67441865]
[1643794876132,0.23841017,2766.3,2766.2,0.42847567]
[1643794878638,0.23841017,2766.3,2766.1,0.67441865]
[1643794880288,0.23841017,2766.3,2766.2,0.37443702]
[1643794882496,0.23841017,2766.3,2766.2,0.0126063]
[1643794882497,1.017e-05,2766.3,2766.2,0.0126063]
[1643794883092,1.017e-05,2766.3,2766.2,6.6126063]
[1643794883294,1.017e-05,2766.3,2766.2,7.6126063]
[1643794886136,1.017e-05,2766.3,2766.2,8.97888657]
[1643794887203,1.017e-05,2766.3,2766.2,2.37888657]
[1643794887406,1.017e-05,2766.3,2766.2,1.0]
[1643794889004,1.017e-05,2766.3,2766.2,1.1807]
[1643794890205,1.017e-05,2766.3,2766.2,0.1807]
[1643794890405,0.772,2767.0,2766.3,4.45]
[1643794890612,0.772,2766.8,2766.3,4.45]
[1643794890808,0.772,2766.9,2766.4,2.08765996]
[1643794891038,0.49868151,2767.0,2766.4,2.08765996]
[1643794891039,0.772,2766.7,2766.4,2.08765996]
[1643794891237,0.772,2766.7,2766.4,1.08765996]
[1643794894243,0.772,2766.7,2766.4,1.38765996]
[1643794895081,0.772,2766.7,2766.4,1.08765996]
[1643794895082,0.772,2766.6,2766.4,1.08765996]
[1643794895684,0.772,2766.6,2766.4,1.38765996]
[1643794897889,0.772,2766.6,2766.4,0.3]
[1643794898090,0.772,2766.6,2766.2,1.3]
[1643794899047,0.772,2766.6,2766.2,2.66628027]
[1643794899242,0.772,2766.6,2766.2,1.3]
[1643794899642,0.772,2766.6,2766.4,0.82067192]
[1643794900043,0.772,2766.6,2766.4,1.12067192]
[1643794902388,0.772,2766.6,2766.4,2.12067192]
[1643794902986,0.772,2766.6,2766.4,0.82067192]
[1643794903190,0.772,2766.6,2766.4,1.12067192]
[1643794903793,0.772,2766.6,2766.3,1.36628027]
[1643794903993,0.772,2766.6,2766.2,2.36628027]
[1643794904391,0.772,2766.6,2766.2,1.0]
[1643794904591,0.772,2766.6,2766.2,2.36628027]
[1643794904996,0.772,2766.6,2766.4,1.30662601]
[1643794905193,0.772,2766.6,2766.4,1.60662601]
[1643794906140,0.772,2766.6,2766.4,1.21624449]
[1643794906338,0.772,2766.6,2766.3,0.3]
[1643794906736,0.772,2766.6,2766.2,2.66628027]
[1643794906937,0.772,2766.6,2766.2,4.66766203]
[1643794907240,0.772,2766.6,2766.3,1.36628027]
[1643794908038,0.772,2766.6,2766.5,0.38296219]
[1643794908239,1.072,2766.6,2766.4,1.0]
[1643794908441,1.072,2766.6,2766.3,2.30062538]
[1643794910287,1.072,2766.6,2766.4,0.35673404]
[1643794910687,1.072,2766.6,2766.4,1.65673404]
[1643794911091,0.772,2766.6,2766.4,1.65673404]
[1643794911300,0.772,2766.6,2766.4,3.02301431]
[1643794913297,0.772,2766.6,2766.4,1.65673404]
[1643794913537,0.772,2766.6,2766.4,0.65673404]
[1643794913738,0.772,2766.6,2766.4,1.35673404]
[1643794913946,0.772,2766.6,2766.4,1.72301431]
[1643794914141,0.772,2766.6,2766.4,2.72301431]
[1643794914340,0.772,2766.6,2766.4,1.35673404]
[1643794914740,1.072,2766.6,2766.4,1.35673404]
[1643794915541,1.072,2766.6,2766.4,0.35673404]
[1643794915542,1.07092308,2766.6,2766.4,0.35673404]
[1643794918391,1.07092308,2766.6,2766.4,1.35673404]
[1643794920692,1.07092308,2766.6,2766.4,2.72301431]
[1643794921240,1.07092308,2766.6,2766.4,1.35673404]
[1643794922141,0.772,2766.6,2766.4,1.35673404]
[1643794922349,1.072,2766.6,2766.4,1.35673404]
[1643794922750,1.072,2766.6,2766.4,0.35673404]
[1643794923151,1.072,2766.6,2766.4,1.35673404]
[1643794925085,1.072,2766.6,2766.4,0.35673404]
[1643794925289,1.072,2766.6,2766.4,1.35673404]
[1643794925691,1.072,2766.6,2766.4,0.35673404]
[1643794925888,1.072,2766.6,2766.4,1.35673404]
[1643794926691,1.072,2766.6,2766.4,0.35673404]
[1643794926896,1.072,2766.6,2766.4,1.35673404]
[1643794927693,1.072,2766.6,2766.4,0.35673404]
[1643794927891,1.072,2766.6,2766.4,1.35673404]
[1643794930540,1.072,2766.6,2766.4,1.0]
[1643794931244,1.072,2766.6,2766.3,2.23434511]
[1643794931443,1.072,2766.6,2766.3,1.23434511]
[1643794931740,1.072,2766.6,2766.3,2.23434511]
[1643794931941,1.072,2766.6,2766.4,0.35232275]
[1643794933294,1.072,2766.6,2766.4,1.35232275]
[1643794934093,1.072,2766.6,2766.4,3.27230004]
[1643794934297,0.772,2766.6,2766.5,8.66415662]
[1643794934495,0.772,2766.6,2766.5,10.33043689]
[1643794934703,0.772,2766.6,2766.5,9.96415662]
[1643794935311,0.1807,2767.3,2766.6,6.75]
[1643794935495,0.1807,2767.3,2766.7,3.45192733]
[1643794935693,0.1807,2767.3,2766.7,4.75192733]
[1643794935935,0.1807,2767.3,2766.8,0.81532601]
[1643794936637,0.1807,2767.3,2766.9,3.18562536]
[1643794936841,0.1806,2767.7,2767.1,1.36990396]
[1643794937143,2.04776599,2768.4,2767.2,2.1806]
[1643794937144,0.1806,2768.0,2767.2,2.1806]
[1643794937349,1.52770998,2767.9,2767.2,3.52880396]
[1643794937541,1.52770998,2768.2,2767.2,2.4589]
[1643794937742,0.1806,2768.2,2768.1,0.32443343]
[1643794938067,1.70831198,2768.3,2767.5,0.90315]
[1643794938244,1.52771198,2768.2,2767.5,0.90315]
[1643794938443,1.52771198,2768.2,2767.5,1.20315]
[1643794939042,1.52771198,2768.2,2767.8,0.90318]
[1643794939246,1.82771198,2768.2,2768.0,0.42460576]
[1643794939448,1.52771198,2768.1,2768.0,0.42460576]
[1643794942098,1.52771198,2768.1,2767.6,1.0]
[1643794942301,1.52771198,2768.1,2767.5,0.1806]
[1643794942302,2.1348808,2768.0,2767.5,0.1806]
[1643794942509,1.52771198,2767.9,2767.5,0.1806]
[1643794942699,2.09654584,2767.8,2767.5,0.1806]
[1643794942901,1.52771198,2767.7,2767.5,0.1806]
[1643794943100,2.1382998,2767.6,2767.5,0.1806]
[1643794943299,4.32543232,2767.6,2767.5,0.1806]
[1643794943552,3.78541178,2767.6,2767.5,0.1806]
[1643794944752,2.18927361,2767.6,2767.5,0.1806]
[1643794944950,1.82771198,2767.6,2767.5,0.1806]
[1643794945954,1.82771198,2767.6,2767.0,2.13860384]
[1643794946155,1.52771198,2767.5,2767.0,2.13860384]
[1643794946556,0.3,2767.6,2767.0,2.13860384]
[1643794946760,1.52800341,2767.5,2767.0,2.13860384]
[1643794946955,2.43139451,2767.5,2767.0,2.13860384]
[1643794947187,1.2033911,2767.5,2767.0,2.13860384]
[1643794947395,0.3,2767.4,2767.0,3.34186384]
[1643794947595,0.3,2767.7,2767.0,3.34186384]
[1643794947799,0.3,2767.6,2767.2,0.90326]
[1643794947993,2.3806,2768.0,2767.2,0.90326]
[1643794948195,1.97647656,2767.9,2767.2,0.90326]
[1643794948394,1.52789988,2767.8,2767.2,0.90326]
[1643794948596,2.43120968,2767.8,2767.2,1.20326]
[1643794948799,1.52789988,2767.7,2767.2,1.20326]
[1643794948995,2.1806,2768.0,2767.2,1.20326]
[1643794949195,1.52789572,2767.9,2767.2,1.20326]
[1643794949396,1.52789572,2767.9,2767.2,0.90326]
[1643794949595,1.52789572,2767.9,2767.1,1.1806]
[1643794949596,1.24526033,2767.7,2767.1,1.4806]
[1643794949796,3.38483002,2767.6,2767.1,1.4806]
[1643794949996,1.8569343,2767.6,2767.1,1.3]
[1643794950195,1.8569343,2767.6,2766.9,0.3]
[1643794950404,1.52799696,2767.5,2766.9,0.3]
[1643794951851,1.52799696,2767.5,2767.0,0.71855543]
[1643794952052,0.9034338,2767.4,2767.0,0.71855543]
[1643794952254,0.3,2767.3,2767.0,0.71855543]
[1643794952455,2.1068518,2767.3,2766.9,0.3]
[1643794953059,2.1068518,2767.3,2766.9,1.20341]
[1643794953254,0.3,2767.1,2766.9,1.20341]
[1643794953854,0.3,2767.1,2767.0,0.38833287]
[1643794956395,0.3,2767.1,2767.0,1.33093287]
[1643794956797,0.3,2767.1,2767.0,2.63093287]
[1643794956995,0.3,2767.3,2767.1,0.90328]
[1643794957796,0.1806,2767.7,2767.6,0.76056429]
[1643794958295,0.4806,2767.7,2767.6,0.76056429]
[1643794958550,0.3806,2767.7,2767.6,0.76056429]
[1643794960765,0.1806,2767.7,2767.6,0.76056429]
[1643794960963,1.2423,2768.2,2767.6,1.57466429]
[1643794960964,1.8062545,2768.1,2767.6,1.57466429]
[1643794961161,0.9031017,2767.9,2767.6,1.98752429]
[1643794961359,0.9031017,2767.9,2767.7,0.3]
[1643794962600,0.9031017,2767.9,2767.7,1.20309]
[1643794962805,0.9031017,2767.9,2767.7,1.3]
[1643794962999,0.9031017,2767.9,2767.7,1.0]
[1643794963197,0.9031017,2767.9,2767.6,0.94116429]
[1643794963404,0.9031017,2767.9,2767.6,0.1806]
[1643794963798,0.3,2767.8,2767.6,0.1806]
[1643794963998,2.1064877,2767.8,2767.3,1.4806]
[1643794964198,1.8064877,2767.8,2767.3,1.4806]
[1643794964397,1.2032406,2767.7,2767.4,0.90322]
[1643794964799,1.2032406,2767.7,2767.6,0.68147326]
[1643794967546,1.2032406,2767.7,2767.6,0.68020786]
[1643794968944,0.3,2767.7,2767.6,0.68020786]
[1643794970796,0.3,2767.8,2767.6,0.68020786]
[1643794970996,0.3,2767.8,2767.7,0.9031]
[1643794971202,0.3,2767.8,2767.7,1.2031]
[1643794972197,0.3,2767.8,2767.7,2.0959]
[1643794972398,0.3,2767.8,2767.7,3.0959]
[1643794972801,0.4806,2768.1,2767.7,3.0959]
[1643794973000,0.4806,2768.1,2768.0,0.38452791]
[1643794973203,0.3,2768.1,2768.0,0.38452791]
[1643794973436,0.3,2768.1,2767.8,0.90307]
[1643794973641,0.9030545,2768.2,2767.8,0.90307]
[1643794973642,1.2030545,2768.2,2767.8,0.90307]
[1643794973847,1.2030545,2768.2,2768.1,0.90373501]
[1643794974843,0.9030545,2768.2,2768.1,0.90373501]
[1643794976143,1.2030545,2768.2,2768.1,0.90373501]
[1643794978099,1.2030545,2768.2,2768.0,0.7588]
[1643794978295,1.2030545,2768.2,2767.8,1.20307]
[1643794979097,1.2030545,2768.2,2768.1,0.85651421]
[1643794979899,1.2030545,2768.2,2768.0,0.3]
[1643794980099,1.2030545,2768.2,2767.9,0.3]
[1643794980398,1.2030545,2768.2,2767.7,0.3]
[1643794981043,0.37971561,2768.1,2767.6,1.51255357]
[1643794981445,0.9030779,2768.0,2767.6,1.51255357]
[1643794981640,0.9030779,2768.0,2767.9,0.7655588]
[1643794982245,0.9030779,2768.0,2767.9,1.0655588]
[1643794984789,0.4026779,2768.0,2767.9,1.0655588]
[1643794985794,0.1806,2768.4,2767.9,1.0655588]
[1643794985795,0.1806,2768.4,2768.0,0.90289]
[1643794985992,2.7091718,2768.5,2768.0,1.90549]
[1643794986193,2.7091718,2768.5,2768.4,0.88528312]
[1643794986597,2.7091718,2768.5,2768.0,1.0]
[1643794986791,0.32424274,2768.4,2767.9,2.61575]
[1643794986993,0.32424274,2768.4,2767.9,1.61575]
[1643794987192,0.32424274,2768.4,2768.3,0.90288]
[1643794987603,0.32424274,2768.4,2768.3,1.0]
[1643794987799,0.32424274,2768.4,2767.9,0.72494197]
[1643794987998,0.32424274,2768.4,2768.0,0.1806]
[1643794988197,1.22714874,2768.4,2767.9,0.90554197]
[1643794988948,1.22601835,2768.4,2767.9,0.90554197]
[1643794989156,1.22601835,2768.4,2768.0,1.80591]
[1643794989351,1.22601835,2768.4,2768.0,2.80591]
[1643794992192,1.22601835,2768.4,2768.0,3.77341]
[1643794993599,0.1806,2768.8,2768.0,3.77341]
[1643794993800,0.1806,2768.9,2768.1,1.97028799]
[1643794994000,0.1806,2768.9,2768.2,1.80538]
[1643794994199,0.1806,2768.9,2768.3,2.78254953]
[1643794994408,1.1464,2769.6,2768.5,0.9026]
[1643794994409,0.1805,2769.5,2768.5,0.9026]
[1643794994602,0.1805,2769.5,2769.0,0.40529923]
[1643794994603,0.54435189,2769.5,2769.0,0.40529923]
[1643794994800,0.54435189,2769.5,2769.0,1.54849923]
[1643794995000,0.54435189,2769.5,2769.0,1.4432]
[1643794995201,0.1805,2769.5,2769.0,1.4432]
[1643794995406,3.34705826,2769.6,2769.1,0.90257]
[1643794995606,2.0,2770.1,2769.1,0.90257]
[1643794995607,0.012201,2770.6,2769.4,0.41286]
[1643794995801,0.1805,2770.3,2769.5,2.41593106]
[1643794996048,2.1804,2770.6,2769.6,1.0]
[1643794996245,1.90441697,2770.5,2770.1,0.9382672]
[1643794996548,1.52673576,2770.4,2770.1,0.9023]
[1643794996744,0.37770471,2770.5,2770.1,0.9023]
[1643794996948,0.37770471,2770.5,2769.8,1.0]
[1643794996949,1.70713971,2770.4,2769.8,1.0]
[1643794997144,1.52673971,2770.3,2769.8,1.0]
[1643794997348,1.52673971,2770.3,2769.9,0.70715941]
[1643794997551,0.1804,2770.4,2769.9,0.70715941]
[1643794997753,1.52682211,2770.3,2769.9,0.70715941]
[1643794997949,0.34656517,2770.0,2769.8,1.0]
[1643794998149,0.34656517,2770.0,2769.7,1.80447]
[1643794998351,1.0828184,2770.4,2769.7,1.80447]
[1643794998352,1.0828184,2770.4,2769.7,2.80447]
[1643794998549,1.52686283,2770.3,2769.7,2.80447]
[1643794998750,1.0828184,2770.4,2769.8,1.0]
[1643794998751,0.1804,2770.4,2769.8,1.0]
[1643794998949,0.1804,2770.6,2769.9,0.90232]
[1643794999353,1.8046269,2771.0,2769.9,1.20232]
[1643794999354,0.1804,2770.8,2769.9,1.20232]
[1643794999556,0.36591979,2770.6,2770.1,0.42910617]
[1643794999791,0.1804,2770.5,2769.8,2.88686]
[1643794999996,0.1804,2770.5,2770.0,0.68849391]
[1643795000192,0.1804,2770.5,2770.0,1.59081391]
[1643795000394,0.1804,2770.5,2770.0,0.68849391]
[1643795001192,0.01239827,2770.9,2770.0,1.59081391]
[1643795001193,1.0826994,2770.8,2770.0,1.59081391]
[1643795001392,0.1804,2770.8,2770.0,1.59081391]
[1643795001592,0.1804,2770.8,2770.0,2.59081391]
[1643795001793,0.1804,2771.0,2770.0,2.59081391]
[1643795002100,0.1804,2771.0,2770.0,1.86889391]
[1643795002101,0.37369075,2770.5,2770.0,1.86889391]
[1643795002499,0.37369075,2770.5,2770.0,2.77120391]
[1643795002695,0.1804,2770.7,2770.0,2.59080391]
[1643795002896,0.1804,2770.7,2770.1,1.0]
[1643795003097,1.52675555,2770.6,2770.1,1.0]
[1643795003297,1.52675555,2770.6,2770.0,0.68849391]
[1643795004156,2.42911415,2770.6,2770.0,0.68849391]
[1643795004355,0.35374168,2770.4,2770.0,0.68849391]
[1643795006258,1.0827066,2770.8,2770.0,0.68849391]
[1643795006461,1.52677831,2770.7,2770.1,0.90227]
[1643795006657,0.1804,2770.6,2770.1,0.90227]
[1643795006857,0.1804,2770.6,2770.1,1.20227]
[1643795007061,0.1804,2770.7,2770.1,2.20227]
[1643795007300,0.51952891,2771.0,2770.8,0.9208309]
[1643795007609,0.51952891,2771.0,2770.2,1.3329]
[1643795007802,0.51952891,2771.0,2770.2,2.1525]
[1643795007803,3.36332986,2770.9,2770.2,2.1525]
[1643795008000,1.70705949,2770.8,2770.2,1.0]
[1643795008199,0.1804,2770.8,2770.1,0.3]
[1643795008400,1.52676242,2770.7,2770.1,0.3]
[1643795008602,0.33912891,2771.0,2770.1,0.3]
[1643795008603,2.04348623,2770.9,2770.1,0.95150399]
[1643795008800,1.52673047,2770.8,2770.1,0.95150399]
[1643795009000,1.52673047,2770.8,2770.1,1.85379399]
[1643795009200,0.1804,2770.9,2770.1,1.85379399]
[1643795009601,0.4151113,2770.8,2770.2,0.51385642]
[1643795009802,0.4151113,2770.8,2770.2,0.4804]
[1643795010206,0.4151113,2770.8,2770.2,0.1804]
[1643795010802,0.4151113,2770.8,2770.2,0.5858594]
[1643795011048,0.4151113,2770.8,2770.2,0.1804]
[1643795011850,1.01699898,2770.9,2770.2,0.1804]
[1643795012254,0.43285487,2770.6,2770.2,0.1804]
[1643795012652,1.01699898,2770.9,2770.2,0.1804]
[1643795013254,2.84188295,2770.9,2770.2,0.1804]
[1643795013455,1.5267247,2770.8,2770.2,0.1804]
[1643795013653,0.9024038,2770.6,2770.2,0.1804]
[1643795013855,1.92482652,2770.5,2770.2,0.1804]
[1643795014055,2.10522652,2770.5,2770.2,0.1804]
[1643795014253,2.41539384,2770.4,2770.2,0.1804]
[1643795014453,7.04233656,2770.3,2770.2,0.1804]
[1643795014706,0.1804,2770.3,2770.2,0.1804]
[1643795015104,2.09252121,2770.3,2770.2,0.1804]
[1643795017207,2.09252121,2770.3,2770.1,9.0]
[1643795017208,1.91212121,2770.3,2770.1,9.0]
[1643795018308,1.44848902,2770.4,2770.1,9.0]
[1643795018967,0.36545732,2770.4,2770.1,9.0]
[1643795020457,1.26796232,2770.4,2770.1,9.0]
[1643795020960,0.36545732,2770.4,2770.1,9.0]
[1643795022217,2.22710999,2770.7,2770.1,10.09236466]
[1643795022218,0.1804,2770.7,2770.1,10.09236466]
[1643795022404,1.1835,2770.9,2770.2,0.1804]
[1643795022604,1.52669544,2770.8,2770.2,0.1804]
[1643795023005,2.04624468,2771.1,2770.2,0.1804]
[1643795023006,1.52669544,2770.7,2770.2,0.1804]
[1643795023211,0.40810026,2770.6,2770.2,0.1804]
[1643795024005,0.70810026,2770.6,2770.2,0.1804]
[1643795027151,0.3,2770.6,2770.2,1.1804]
[1643795027450,0.1804,2771.1,2770.2,1.1804]
[1643795027650,1.52655736,2771.0,2770.2,1.1804]
[1643795027849,1.82655736,2771.0,2770.2,1.1804]
[1643795028050,1.52655736,2770.9,2770.2,1.1804]
[1643795028449,0.35669349,2770.6,2770.2,1.1804]
[1643795028649,0.35669349,2770.6,2770.2,1.4804]
[1643795028850,0.65669349,2770.6,2770.2,1.4804]
[1643795029250,0.9023314,2771.0,2770.2,1.4804]
[1643795029455,2.17160322,2771.4,2770.3,2.06434852]
[1643795029456,0.1804,2771.3,2770.3,2.06434852]
[1643795029702,2.92334516,2771.4,2770.3,2.06434852]
[1643795029898,1.2166,2771.4,2770.3,2.06434852]
[1643795030299,0.34726346,2770.9,2770.8,0.76952832]
[1643795030499,0.34726346,2770.9,2770.3,5.73984]
[1643795030708,0.34726346,2770.9,2770.3,3.9356]
[1643795030909,0.64726346,2770.9,2770.3,3.9356]
[1643795031102,0.64726346,2770.9,2770.2,2.6341]
[1643795031306,0.64726346,2770.9,2770.2,1.4804]
[1643795032103,0.33664189,2770.3,2770.2,1.4804]
[1643795032308,0.3,2770.4,2770.2,1.4804]
[1643795032707,1.0827043,2771.1,2770.2,1.4804]
[1643795032909,1.82654491,2771.0,2770.2,1.4804]
[1643795033110,1.52654491,2770.9,2770.2,1.4804]
[1643795033556,0.40217646,2770.3,2770.2,1.4804]
[1643795033751,0.3,2770.4,2770.2,1.4804]
[1643795034353,0.1804,2770.9,2770.2,1.4804]
[1643795034557,1.52646298,2770.8,2770.2,1.4804]
[1643795034758,0.1804,2771.0,2770.2,4.33145518]
[1643795034958,0.1804,2771.1,2770.2,3.51608487]
[1643795035157,0.1804,2771.2,2770.2,3.51608487]
[1643795035359,1.52631017,2771.1,2770.2,3.51608487]
[1643795035557,0.1804,2771.5,2770.2,3.51608487]
[1643795035758,1.52624907,2771.4,2770.3,1.1698]
[1643795035960,1.0825703,2771.3,2770.8,0.858736]
[1643795036163,0.9021703,2771.3,2770.8,1.158736]
[1643795036357,1.2021703,2771.3,2770.8,1.158736]
[1643795036558,1.52626172,2771.2,2770.8,1.158736]
[1643795037408,1.2021703,2771.3,2770.8,1.158736]
[1643795037409,0.42297189,2771.1,2770.8,1.158736]
[1643795037609,0.42297189,2771.1,2770.8,0.3]
[1643795037812,0.72297189,2771.1,2770.6,0.4304]
[1643795038011,0.72297189,2771.1,2770.6,0.1804]
[1643795038410,0.3,2771.1,2770.6,0.1804]
[1643795038613,1.52631959,2771.0,2770.6,2.22024781]
[1643795038818,0.1804,2771.5,2770.6,2.22024781]
[1643795039013,1.52627144,2771.4,2770.6,2.22024781]
[1643795039217,1.52627144,2771.4,2770.6,2.52024781]
[1643795039413,1.52627144,2771.4,2770.7,1.0]
[1643795039616,0.41665932,2771.2,2770.8,1.97081561]
[1643795039814,1.52627144,2771.1,2770.8,2.27081561]
[1643795040015,1.52627144,2771.1,2770.8,0.3]
[1643795040216,1.52627144,2771.1,2770.8,1.01695025]
[1643795040615,1.52627144,2771.1,2770.6,2.44288085]
[1643795040816,1.52627144,2771.1,2770.7,1.0]
[1643795041053,1.52627144,2771.1,2770.6,2.44288085]
[1643795041364,1.52627144,2771.1,2770.6,3.34500085]
[1643795041853,1.52627144,2771.1,2770.7,1.0]
[1643795042355,1.52627144,2771.1,2771.0,0.91313535]
[1643795042756,1.52627144,2771.1,2771.0,1.21313535]
[1643795043156,0.3,2771.2,2770.9,1.3]
[1643795043360,0.3,2771.2,2770.9,0.3]
[1643795043558,0.3,2771.2,2770.8,1.92136945]
[1643795043759,0.58226567,2771.5,2770.7,1.4804]
[1643795043964,1.52623519,2771.4,2770.7,0.87241983]
[1643795044157,1.52623519,2771.4,2770.8,1.94012204]
[1643795044358,1.52623519,2771.4,2770.8,1.0]
[1643795044558,1.52623519,2771.4,2770.8,1.3]
[1643795045012,1.52623519,2771.4,2770.8,4.00114771]
[1643795045414,1.52623519,2771.4,2770.8,2.07378415]
[1643795045614,1.52623519,2771.4,2770.8,1.0]
[1643795045811,2.42837239,2771.4,2770.8,2.93067846]
[1643795046013,0.01200125,2771.2,2770.7,0.1804]
[1643795046218,3.22963518,2771.1,2770.7,0.1804]
[1643795046414,3.70715519,2771.0,2770.7,0.1804]
[1643795046618,3.70715519,2771.0,2770.1,9.0]
[1643795046619,0.3254652,2770.2,2770.1,9.0]
[1643795046817,0.9024932,2770.4,2770.1,9.0]
[1643795047013,0.3,2770.2,2770.1,9.0]
[1643795047212,2.0,2771.0,2770.1,9.0]
[1643795047213,0.1804,2770.9,2770.1,9.0]
[1643795047418,1.52652728,2770.8,2770.1,9.0]
[1643795047615,0.1804,2770.7,2770.1,9.0]
[1643795047814,1.52652728,2770.6,2770.1,9.0]
[1643795048013,0.1804,2770.5,2770.1,9.0]
[1643795048213,1.82652728,2770.4,2770.1,9.0]
[1643795048446,0.40484062,2770.3,2770.1,9.0]
[1643795052303,7.19135722,2770.2,2770.1,9.0]
[1643795052506,3.57175722,2770.2,2770.1,9.0]
[1643795052705,3.87175722,2770.2,2770.1,9.0]
[1643795052903,5.67957076,2770.2,2770.1,9.0]
[1643795053103,3.00704262,2770.2,2770.1,9.0]
[1643795053303,4.86902368,2770.2,2770.1,9.0]
[1643795053903,4.86902368,2770.2,2770.1,7.37147768]